bitfinex/quotes_BTCUSD_20241028
["timestamp","ask_amount","ask_price","bid_price","bid_amount"]
[1730147017935,0.01472486,69567.0,69566.0,0.14571311]
[1730147018373,0.143734,69573.0,69567.0,0.143745]
[1730147018602,0.007,69569.0,69568.0,0.00196398]
[1730147018947,0.01772636,69569.0,69568.0,0.14570798]
[1730147019167,0.0959,69574.0,69568.0,0.00196398]
[1730147019400,0.15446539,69573.0,69568.0,0.00196398]
[1730147019614,0.15446539,69573.0,69566.0,0.287496]
[1730147019615,0.01073139,69572.0,69567.0,0.143746]
[1730147019832,0.239632,69574.0,69569.0,0.14571027]
[1730147020060,0.15446545,69573.0,69568.0,0.00196983]
[1730147020270,0.15446545,69573.0,69570.0,0.0019687]
[1730147020520,0.01073045,69572.0,69569.0,0.00196927]
[1730147020765,0.143735,69572.0,69571.0,0.00196814]
[1730147020959,0.15446699,69572.0,69570.0,0.0019687]
[1730147021208,0.01073199,69571.0,69566.0,0.143746]
[1730147021444,0.143735,69572.0,69566.0,0.143746]
[1730147021672,0.01073363,69571.0,69566.0,0.143746]
[1730147021897,0.023,69571.0,69566.0,0.143746]
[1730147022562,0.023,69571.0,69567.0,0.287491]
[1730147022563,0.031,69571.0,69567.0,0.287491]
[1730147022772,0.031,69571.0,69568.0,0.143744]
[1730147022994,0.031,69571.0,69567.0,0.143746]
[1730147023211,0.031,69571.0,69567.0,0.143745]
[1730147023644,0.031,69571.0,69567.0,0.13326321]
[1730147024296,0.031,69571.0,69569.0,0.143741]
[1730147024525,0.031,69571.0,69567.0,0.143745]
[1730147024526,0.038,69571.0,69567.0,0.143745]
[1730147024749,0.03,69571.0,69567.0,0.143745]
[1730147024966,0.03,69571.0,69565.0,0.289125]
[1730147024967,0.031,69571.0,69566.0,0.143748]
[1730147025261,0.01073884,69570.0,69566.0,0.143748]
[1730147025433,0.01073884,69570.0,69565.0,0.289125]
[1730147025655,0.03,69571.0,69568.0,0.143742]
[1730147025870,0.01073882,69570.0,69568.0,0.143742]
[1730147026288,0.015,69571.0,69568.0,0.143742]
[1730147026538,0.010738,69570.0,69566.0,0.143748]
[1730147026757,0.007,69571.0,69566.0,0.143748]
[1730147026975,0.01073976,69570.0,69568.0,0.143743]
[1730147027200,0.007,69571.0,69565.0,0.289125]
[1730147027427,0.01074114,69570.0,69566.0,0.143747]
[1730147027661,0.007,69571.0,69565.0,0.289125]
[1730147027897,0.01774164,69570.0,69568.0,0.143743]
[1730147028132,0.01074164,69569.0,69568.0,0.143743]
[1730147028369,0.01074157,69569.0,69568.0,0.143743]
[1730147028814,0.01074157,69569.0,69566.0,0.000825]
[1730147029109,0.007,69570.0,69566.0,0.144572]
[1730147029333,0.01074304,69569.0,69567.0,0.0019704]
[1730147029563,0.007,69571.0,69567.0,0.0019704]
[1730147029776,0.006,69569.0,69567.0,0.0019704]
[1730147030199,0.01074371,69568.0,69567.0,0.0019704]
[1730147031867,0.01574371,69568.0,69567.0,0.0019704]
[1730147032080,0.02074371,69568.0,69567.0,0.0019704]
[1730147033862,0.02074393,69568.0,69567.0,0.0019704]
[1730147034119,0.02074419,69568.0,69567.0,0.0019704]
[1730147034342,0.01574419,69568.0,69567.0,0.0019704]
[1730147034534,0.01674419,69568.0,69567.0,0.0019704]
[1730147035069,0.02274419,69568.0,69567.0,0.0019704]
[1730147035267,0.01674419,69568.0,69567.0,0.1457164]
[1730147035477,0.01074419,69568.0,69567.0,0.0019704]
[1730147035685,0.02274419,69568.0,69567.0,0.0019704]
[1730147035893,0.01674419,69568.0,69567.0,0.0019704]
[1730147037045,0.01074419,69568.0,69567.0,0.0019704]
[1730147037273,0.01574419,69568.0,69567.0,0.1457164]
[1730147037489,0.01574419,69568.0,69567.0,0.0019704]
[1730147038161,0.01674419,69568.0,69567.0,0.0019704]
[1730147038577,0.01774419,69568.0,69567.0,0.0019704]
[1730147038780,0.01674419,69568.0,69567.0,0.0019704]
[1730147039228,0.02274419,69568.0,69567.0,0.0019704]
[1730147040084,0.012,69568.0,69567.0,0.1457164]
[1730147040306,0.02274245,69568.0,69567.0,0.36105265]
[1730147040544,0.012,69568.0,69567.0,0.2277164]
[1730147040757,0.012,69568.0,69567.0,0.0019704]
[1730147040983,0.012,69568.0,69567.0,0.1457164]
[1730147041407,0.006,69568.0,69567.0,0.1457164]
[1730147041619,0.00165,69570.0,69569.0,0.143742]
[1730147041863,0.00165,69570.0,69569.0,0.14572711]
[1730147043808,0.00465,69570.0,69569.0,0.14572711]
[1730147044921,0.00765,69570.0,69569.0,0.14572711]
[1730147046378,0.00765,69570.0,69569.0,0.00198511]
[1730147046606,0.00765,69570.0,69569.0,0.14572711]
[1730147047537,0.01969182,69571.0,69569.0,0.22682038]
[1730147047768,0.1090175,69576.0,69575.0,0.143729]
[1730147047769,0.00165,69576.0,69575.0,0.143729]
[1730147047999,0.00165,69576.0,69575.0,0.57880145]
[1730147048218,0.00165,69589.0,69584.0,0.18896321]
[1730147048441,0.00165,69589.0,69588.0,0.25316521]
[1730147048652,0.00165,69589.0,69588.0,0.25834945]
[1730147049529,0.00165,69589.0,69588.0,0.14601258]
[1730147050625,0.00265,69589.0,69588.0,0.31663873]
[1730147051276,0.00265,69589.0,69588.0,0.31963873]
[1730147051934,0.00365,69589.0,69588.0,0.32663873]
[1730147052183,0.00365,69589.0,69588.0,0.31963873]
[1730147052405,0.00465,69589.0,69588.0,0.32663873]
[1730147052908,0.00365,69589.0,69588.0,0.462974]
[1730147053132,0.00465,69589.0,69588.0,0.83090015]
[1730147053333,0.00265,69589.0,69588.0,0.657274]
[1730147053544,0.00165,69589.0,69588.0,0.653274]
[1730147053978,0.00265,69589.0,69588.0,0.657274]
[1730147054689,0.00365,69589.0,69588.0,0.661274]
[1730147054882,0.00265,69589.0,69588.0,0.655274]
[1730147055369,0.00365,69589.0,69588.0,0.659274]
[1730147055582,0.00365,69589.0,69588.0,0.546674]
[1730147055804,0.00365,69589.0,69588.0,0.551674]
[1730147056720,0.00365,69589.0,69588.0,0.561674]
[1730147057593,0.00365,69589.0,69588.0,0.556674]
[1730147057823,0.00365,69589.0,69588.0,0.561674]
[1730147061703,0.00365,69589.0,69588.0,0.15401258]
[1730147063076,0.00265,69589.0,69588.0,0.15001258]
[1730147063514,0.00365,69589.0,69588.0,0.15401258]
[1730147063718,0.00365,69589.0,69588.0,0.15001258]
[1730147063931,0.00265,69589.0,69588.0,0.15001258]
[1730147064363,0.00365,69589.0,69588.0,0.15401258]
[1730147064578,0.00365,69589.0,69588.0,0.32063873]
[1730147066525,0.00365,69589.0,69588.0,0.15401258]
[1730147066938,0.00365,69589.0,69588.0,0.32063873]
[1730147068263,0.00365,69589.0,69588.0,0.01031058]
[1730147068264,0.20175,69589.0,69588.0,0.01031058]
[1730147068489,0.34545,69589.0,69588.0,0.01031058]
[1730147068705,0.34545,69589.0,69588.0,0.008]
[1730147068706,0.66041142,69589.0,69588.0,0.008]
[1730147068927,0.023,69583.0,69579.0,0.21533625]
[1730147069362,0.023,69583.0,69580.0,0.00222269]
[1730147069601,0.023,69583.0,69576.0,0.432003]
[1730147069826,0.023,69583.0,69581.0,0.00222203]
[1730147070049,0.023,69583.0,69576.0,0.144552]
[1730147070339,0.025,69583.0,69576.0,0.144552]
[1730147070565,0.168714,69583.0,69577.0,0.0022247]
[1730147070784,0.023,69580.0,69577.0,0.0022247]
[1730147071001,0.16672,69580.0,69577.0,0.0022247]
[1730147071230,0.023,69578.0,69576.0,0.000825]
[1730147071657,0.023,69580.0,69577.0,0.0022247]
[1730147071894,0.16672,69580.0,69577.0,0.0022247]
[1730147072142,0.023,69580.0,69577.0,0.0022247]
[1730147072369,0.023,69583.0,69577.0,0.0022247]
[1730147072590,0.003,69583.0,69582.0,0.143715]
[1730147073073,0.0956,69584.0,69583.0,0.143713]
[1730147073293,0.1186,69584.0,69583.0,0.143713]
[1730147073533,0.1186,69584.0,69583.0,0.0022557]
[1730147073972,0.0956,69584.0,69582.0,0.143714]
[1730147074204,0.003,69583.0,69582.0,0.143715]
[1730147074424,0.0956,69584.0,69579.0,0.287443]
[1730147074641,0.0956,69584.0,69583.0,0.143713]
[1730147074854,0.0996,69584.0,69583.0,0.143713]
[1730147075056,0.0956,69584.0,69583.0,0.143713]
[1730147075287,0.023,69588.0,69586.0,0.143706]
[1730147075515,0.00165,69589.0,69588.0,0.143702]
[1730147075746,0.00165,69589.0,69587.0,0.143703]
[1730147076181,0.00165,69589.0,69583.0,0.143713]
[1730147076395,0.00165,69589.0,69585.0,0.143707]
[1730147076648,0.00165,69589.0,69582.0,0.28743]
[1730147076874,0.00165,69589.0,69581.0,0.16662615]
[1730147077089,0.00165,69589.0,69586.0,0.143705]
[1730147077326,0.00465,69589.0,69587.0,0.143704]
[1730147077541,0.00465,69589.0,69588.0,0.143702]
[1730147078434,0.00765,69589.0,69588.0,0.143702]
[1730147078682,0.00165,69589.0,69588.0,0.143702]
[1730147078903,0.00465,69589.0,69588.0,0.143702]
[1730147079128,0.00465,69589.0,69581.0,0.16662615]
[1730147079350,0.00165,69589.0,69586.0,0.143706]
[1730147079569,0.00165,69589.0,69588.0,0.143702]
[1730147079780,0.00465,69589.0,69588.0,0.143702]
[1730147080488,0.00765,69589.0,69588.0,0.143702]
[1730147081829,0.00465,69589.0,69588.0,0.143702]
[1730147082480,0.00765,69589.0,69588.0,0.143702]
[1730147083170,0.00165,69589.0,69586.0,0.143706]
[1730147083388,0.00265,69589.0,69586.0,0.143706]
[1730147084052,0.00365,69589.0,69586.0,0.143706]
[1730147084289,0.00265,69589.0,69586.0,0.143706]
[1730147084766,0.00565,69589.0,69586.0,0.143706]
[1730147085238,0.00965,69589.0,69586.0,0.143706]
[1730147085455,0.00965,69589.0,69584.0,0.287419]
[1730147085456,0.00965,69589.0,69585.0,0.431127]
[1730147085702,0.00565,69589.0,69582.0,0.143714]
[1730147085942,0.00965,69589.0,69582.0,0.143714]
[1730147086191,0.00965,69589.0,69577.0,0.00920763]
[1730147086192,0.143713,69584.0,69577.0,0.143725]
[1730147086432,0.0958,69583.0,69580.0,0.21533625]
[1730147086650,0.0958,69583.0,69578.0,0.143721]
[1730147087117,0.297054,69589.0,69573.0,0.21533625]
[1730147087118,0.00965,69589.0,69573.0,0.21533625]
[1730147087365,0.172,69588.0,69573.0,0.21533625]
[1730147087591,0.002,69584.0,69578.0,0.287447]
[1730147087823,0.002,69584.0,69579.0,0.14372]
[1730147088048,0.143705,69587.0,69579.0,0.14372]
[1730147088315,0.002,69584.0,69579.0,0.431158]
[1730147088773,0.023,69587.0,69580.0,0.143719]
[1730147089021,0.004,69584.0,69580.0,0.143719]
[1730147089264,0.004,69584.0,69581.0,0.00228037]
[1730147089748,0.023,69587.0,69583.0,0.143712]
[1730147089971,0.007,69587.0,69582.0,0.0022797]
[1730147090193,0.007,69587.0,69586.0,0.143707]
[1730147090681,0.007,69587.0,69586.0,0.14598403]
[1730147091147,0.006,69587.0,69586.0,0.14598403]
[1730147091384,0.00165,69589.0,69588.0,0.143702]
[1730147091857,0.00165,69589.0,69588.0,0.14597769]
[1730147093256,0.01238619,69589.0,69588.0,0.14597769]
[1730147093471,0.00165,69589.0,69588.0,0.14597769]
[1730147093687,0.00165,69589.0,69588.0,0.00227569]
[1730147094116,0.00165,69589.0,69588.0,0.14597769]
[1730147094305,0.00165,69589.0,69588.0,0.00227569]
[1730147094558,0.00165,69589.0,69585.0,0.143708]
[1730147094789,0.00165,69589.0,69588.0,0.00227569]
[1730147095022,0.00165,69589.0,69586.0,0.143706]
[1730147095249,0.00165,69589.0,69583.0,0.287424]
[1730147095250,0.00165,69589.0,69588.0,0.00227569]
[1730147095477,0.00165,69589.0,69588.0,0.143702]
[1730147095708,0.00165,69589.0,69588.0,0.00227569]
[1730147096033,0.00265,69589.0,69588.0,0.00227569]
[1730147096363,0.00265,69589.0,69585.0,0.287415]
[1730147096598,0.00265,69589.0,69588.0,0.14597769]
[1730147096850,0.00365,69589.0,69587.0,0.143704]
[1730147097088,0.00365,69589.0,69588.0,0.00227569]
[1730147097323,0.00265,69589.0,69588.0,0.00227569]
[1730147097546,0.00365,69589.0,69588.0,0.00227569]
[1730147097779,0.00365,69589.0,69585.0,0.143707]
[1730147098007,0.00265,69589.0,69588.0,0.00227569]
[1730147098231,0.00265,69589.0,69585.0,0.143707]
[1730147098468,0.00365,69589.0,69588.0,0.00227569]
[1730147098697,0.00365,69589.0,69585.0,0.143707]
[1730147098925,0.00365,69589.0,69588.0,0.143702]
[1730147099150,0.00265,69589.0,69586.0,0.00227486]
[1730147099396,0.00265,69589.0,69588.0,0.00227352]
[1730147099616,0.00265,69589.0,69587.0,0.00227419]
[1730147099848,0.0924,69588.0,69583.0,0.143713]
[1730147102160,0.0924,69588.0,69582.0,0.000825]
[1730147102161,0.0818,69587.0,69582.0,0.000825]
[1730147102607,0.01074048,69586.0,69582.0,0.144539]
[1730147102829,0.0818,69587.0,69582.0,0.144539]
[1730147103044,0.0818,69587.0,69582.0,0.000825]
[1730147103261,0.0924,69588.0,69585.0,0.143709]
[1730147103486,0.0924,69588.0,69583.0,0.143713]
[1730147103722,0.0934,69588.0,69583.0,0.287426]
[1730147103958,0.0934,69588.0,69584.0,0.14371]
[1730147104197,0.0924,69588.0,69584.0,0.1459862]
[1730147104460,0.003,69587.0,69584.0,0.0022762]
[1730147104692,0.0924,69588.0,69584.0,0.0022762]
[1730147104923,0.003,69587.0,69582.0,0.14454]
[1730147105156,0.01073793,69586.0,69585.0,0.00227553]
[1730147105374,0.01073793,69586.0,69583.0,0.143712]
[1730147105602,0.0964,69588.0,69583.0,0.143712]
[1730147105603,0.01073793,69585.0,69583.0,0.143712]
[1730147105848,0.01073793,69584.0,69583.0,0.143712]
[1730147106102,0.01073793,69584.0,69583.0,0.143713]
[1730147106349,0.01073793,69584.0,69582.0,0.000825]
[1730147106556,0.01073793,69583.0,69582.0,0.000825]
[1730147107009,0.01073978,69583.0,69582.0,0.000825]
[1730147107226,0.30773625,69588.0,69582.0,0.000825]
[1730147107444,0.01073924,69587.0,69582.0,0.000825]
[1730147107654,0.01073924,69586.0,69582.0,0.000825]
[1730147107874,0.27896549,69588.0,69582.0,0.000825]
[1730147107875,0.03373924,69585.0,69582.0,0.000825]
[1730147108133,0.05360073,69584.0,69582.0,0.000825]
[1730147108561,0.05360073,69583.0,69582.0,0.000825]
[1730147108776,0.01073924,69583.0,69582.0,0.000825]
[1730147108991,0.05360073,69583.0,69582.0,0.000825]
[1730147109642,0.01073924,69583.0,69582.0,0.000825]
[1730147110064,0.05362858,69583.0,69582.0,0.000825]
[1730147110488,0.05862858,69583.0,69582.0,0.000825]
[1730147110713,0.05862942,69583.0,69582.0,0.000825]
[1730147111184,0.05862942,69583.0,69582.0,0.0032328]
[1730147111185,0.005,69583.0,69582.0,0.0032328]
[1730147111402,0.05862321,69583.0,69582.0,0.000825]
[1730147111638,0.06362321,69583.0,69582.0,0.000825]
[1730147112310,0.06362321,69583.0,69582.0,0.0032328]
[1730147114777,0.02073303,69583.0,69582.0,0.0032328]
[1730147116361,0.08509382,69583.0,69582.0,0.0032328]
[1730147116773,0.02073303,69583.0,69582.0,0.0032328]
[1730147117528,0.179151,69583.0,69582.0,0.0032328]
[1730147118194,0.17914746,69583.0,69582.0,0.0032328]
[1730147118414,0.08510856,69583.0,69582.0,0.0032328]
[1730147118638,0.02072949,69583.0,69582.0,0.0032328]
[1730147119131,0.08510856,69583.0,69582.0,0.0032328]
[1730147119565,0.02072949,69583.0,69582.0,0.0032328]
[1730147119823,0.20213826,69583.0,69582.0,0.0032328]
[1730147120040,0.51894889,69583.0,69582.0,0.0032328]
[1730147120261,0.51894889,69583.0,69582.0,0.000825]
[1730147120478,0.21682949,69583.0,69582.0,0.000825]
[1730147120943,0.02072949,69583.0,69582.0,0.1469478]
[1730147121159,0.06364225,69583.0,69582.0,0.1469478]
[1730147121434,0.08509923,69583.0,69582.0,0.1469478]
[1730147122098,0.02072782,69583.0,69582.0,0.1469478]
[1730147123459,0.06364216,69583.0,69582.0,0.1469478]
[1730147123678,0.05291434,69583.0,69582.0,0.1469478]
[1730147123900,0.01,69583.0,69582.0,0.1469478]
[1730147129637,0.05296028,69583.0,69582.0,0.1469478]
[1730147130310,0.02074735,69583.0,69582.0,0.1469478]
[1730147130759,0.01,69583.0,69582.0,0.1469478]
[1730147131902,0.05297577,69583.0,69582.0,0.1469478]
[1730147133675,0.06372487,69583.0,69582.0,0.1469478]
[1730147133902,0.05297635,69583.0,69582.0,0.1469478]
[1730147134125,0.06372442,69583.0,69582.0,0.1469478]
[1730147137529,0.05297635,69583.0,69582.0,0.1469478]
[1730147137778,0.06372846,69583.0,69582.0,0.1469478]
[1730147140288,0.01,69583.0,69582.0,0.1469478]
[1730147140505,0.06372783,69583.0,69582.0,0.1469478]
[1730147140987,0.05297635,69583.0,69582.0,0.1469478]
[1730147141199,0.01,69583.0,69582.0,0.1469478]
[1730147141658,0.05297635,69583.0,69582.0,0.1469478]
[1730147141935,0.01,69583.0,69582.0,0.1469478]
[1730147142388,0.05297635,69583.0,69582.0,0.1469478]
[1730147142848,0.05297635,69583.0,69582.0,0.0032328]
[1730147143082,0.0529902,69583.0,69582.0,0.0032328]
[1730147143296,0.0529902,69583.0,69582.0,0.1469478]
[1730147144177,0.0529902,69583.0,69582.0,0.0032328]
[1730147144885,0.0529902,69583.0,69582.0,0.1469478]
[1730147146037,0.0529902,69583.0,69582.0,0.0032328]
[1730147147243,0.0529902,69583.0,69582.0,0.1469478]
[1730147147468,0.06374329,69583.0,69582.0,0.1469478]
[1730147149298,0.06374356,69583.0,69582.0,0.1469478]
[1730147149568,0.06374356,69583.0,69582.0,0.0032328]
[1730147149795,0.06374356,69583.0,69582.0,0.1469478]
[1730147150490,0.02075336,69583.0,69582.0,0.1469478]
[1730147152623,0.02075506,69583.0,69582.0,0.1469478]
[1730147152841,0.02075506,69583.0,69582.0,0.0032328]
[1730147153728,0.02075506,69583.0,69582.0,0.1469478]
[1730147154231,0.02075506,69583.0,69582.0,0.0032328]
[1730147156645,0.02075506,69583.0,69582.0,0.1469478]
[1730147157094,0.02075506,69583.0,69582.0,0.0032328]
[1730147158453,0.06372776,69583.0,69582.0,0.0032328]
[1730147158650,0.02075506,69583.0,69582.0,0.0032328]
[1730147159586,0.6034239,69583.0,69582.0,0.0032328]
[1730147159807,0.39092127,69583.0,69582.0,0.0032328]
[1730147160058,0.39092127,69583.0,69582.0,0.000825]
[1730147160943,0.39093736,69583.0,69582.0,0.000825]
[1730147161166,0.37374786,69583.0,69582.0,0.00322953]
[1730147161384,0.49834756,69583.0,69582.0,0.000825]
[1730147161611,0.3909408,69583.0,69582.0,0.000825]
[1730147162078,0.3909408,69583.0,69582.0,0.00322953]
[1730147162307,0.3909408,69583.0,69582.0,0.000825]
[1730147162785,0.37373359,69583.0,69582.0,0.00302196]
[1730147162994,0.4134406,69583.0,69582.0,0.00302196]
[1730147163216,0.39091885,69583.0,69582.0,0.00302196]
[1730147164542,0.39091885,69583.0,69582.0,0.14673696]
[1730147164543,0.32690626,69583.0,69582.0,0.14673696]
[1730147164764,0.17933359,69583.0,69582.0,0.14673696]
[1730147165009,0.17930967,69583.0,69582.0,0.14673696]
[1730147165686,0.17930967,69583.0,69582.0,0.00302196]
[1730147166586,0.20183125,69583.0,69582.0,0.00302196]
[1730147167486,0.26522316,69583.0,69582.0,0.00302196]
[1730147168611,0.17930967,69583.0,69582.0,0.00302196]
[1730147169285,0.62191323,69583.0,69582.0,0.00302196]
[1730147169739,0.51452267,69583.0,69582.0,0.000825]
[1730147169958,0.53170272,69583.0,69582.0,0.000825]
[1730147170204,0.53169983,69583.0,69582.0,0.000825]
[1730147170654,0.63907531,69583.0,69582.0,0.000825]
[1730147171343,0.78741058,69583.0,69582.0,0.000825]
[1730147171556,0.78741058,69583.0,69576.0,0.000825]
[1730147171557,0.148725,69577.0,69576.0,0.000825]
[1730147171778,0.80355396,69577.0,69576.0,0.000825]
[1730147172008,0.83147097,69577.0,69576.0,0.000825]
[1730147173606,0.85347097,69577.0,69576.0,0.000825]
[1730147174046,0.86799683,69577.0,69576.0,0.000825]
[1730147174268,0.86923199,69577.0,69576.0,0.000825]
[1730147174489,0.8799521,69577.0,69576.0,0.000825]
[1730147174697,0.97852329,69577.0,69576.0,0.000825]
[1730147174918,1.09052329,69577.0,69576.0,0.000825]
[1730147175136,1.37312417,69577.0,69576.0,0.000825]
[1730147175357,1.11262393,69577.0,69576.0,0.000825]
[1730147175573,1.11262393,69577.0,69567.0,0.000825]
[1730147175574,0.148744,69568.0,69567.0,0.000825]
[1730147175800,0.78672429,69568.0,69567.0,0.000825]
[1730147176897,0.83725234,69568.0,69567.0,0.000825]
[1730147177142,0.82325234,69568.0,69567.0,0.000825]
[1730147177358,0.80072429,69568.0,69567.0,0.000825]
[1730147177576,1.1749543,69568.0,69567.0,0.000825]
[1730147177826,1.28435816,69568.0,69567.0,0.000825]
[1730147178049,1.16342029,69568.0,69567.0,0.000825]
[1730147178268,1.16542029,69568.0,69567.0,0.000825]
[1730147178488,1.16470747,69568.0,69567.0,0.000825]
[1730147178929,1.15070747,69568.0,69567.0,0.000825]
[1730147179167,1.16470747,69568.0,69567.0,0.000825]
[1730147179395,1.05330361,69568.0,69567.0,0.000825]
[1730147179626,0.80060761,69568.0,69567.0,0.000825]
[1730147179852,0.81460761,69568.0,69567.0,0.000825]
[1730147180074,0.88606912,69568.0,69567.0,0.000825]
[1730147180334,0.87206912,69568.0,69567.0,0.000825]
[1730147180553,0.80004369,69568.0,69567.0,0.000825]
[1730147181013,0.78604369,69568.0,69567.0,0.000825]
[1730147181442,0.81160356,69568.0,69567.0,0.000825]
[1730147181665,0.76889152,69568.0,69567.0,0.000825]
[1730147181880,0.83297934,69568.0,69567.0,0.000825]
[1730147182552,0.76889152,69568.0,69567.0,0.000825]
[1730147182777,0.78289152,69568.0,69567.0,0.000825]
[1730147182995,0.76889152,69568.0,69567.0,0.000825]
[1730147183212,0.78289152,69568.0,69567.0,0.000825]
[1730147183431,0.76889152,69568.0,69567.0,0.000825]
[1730147183648,0.81157512,69568.0,69567.0,0.000825]
[1730147184082,0.82557512,69568.0,69567.0,0.000825]
[1730147184298,0.81157512,69568.0,69567.0,0.000825]
[1730147184512,0.82557512,69568.0,69567.0,0.000825]
[1730147185447,0.81485501,69568.0,69567.0,0.000825]
[1730147185662,0.76883701,69568.0,69567.0,0.000825]
[1730147186532,0.005,69564.0,69561.0,0.001626]
[1730147186754,0.166756,69562.0,69561.0,0.001626]
[1730147186968,0.31009127,69562.0,69561.0,0.001626]
[1730147187185,0.33262171,69562.0,69561.0,0.001626]
[1730147187616,0.31009127,69562.0,69561.0,0.001626]
[1730147189146,0.32209127,69562.0,69561.0,0.001626]
[1730147189399,0.33309127,69562.0,69561.0,0.001626]
[1730147190254,0.43540017,69562.0,69561.0,0.001626]
[1730147190984,0.43540017,69562.0,69553.0,0.21616125]
[1730147190985,0.023,69561.0,69553.0,0.21186425]
[1730147191208,0.143771,69555.0,69551.0,0.143779]
[1730147191431,0.143771,69555.0,69554.0,0.00229951]
[1730147191653,0.143771,69555.0,69551.0,0.143779]
[1730147191883,0.143773,69554.0,69550.0,0.143781]
[1730147192096,0.143773,69554.0,69552.0,0.00230085]
[1730147192314,0.143773,69554.0,69550.0,0.143781]
[1730147192315,0.143773,69554.0,69551.0,0.00230152]
[1730147192543,0.143773,69554.0,69550.0,0.143781]
[1730147192544,0.143771,69555.0,69553.0,0.00230018]
[1730147192757,0.143771,69555.0,69552.0,0.00230085]
[1730147192969,0.143771,69555.0,69554.0,0.00229951]
[1730147193191,0.287541,69556.0,69553.0,0.00230018]
[1730147193405,0.147773,69554.0,69550.0,0.143781]
[1730147193616,0.151773,69554.0,69550.0,0.143781]
[1730147193845,0.143775,69553.0,69550.0,0.143781]
[1730147194057,0.004,69554.0,69550.0,0.143781]
[1730147194058,0.02253117,69554.0,69550.0,0.143781]
[1730147194294,0.16630417,69554.0,69551.0,0.00230152]
[1730147194550,0.166777,69552.0,69551.0,0.00230152]
[1730147194782,0.41951613,69552.0,69551.0,0.00230152]
[1730147194992,0.166781,69550.0,69549.0,0.000824]
[1730147196327,0.0455329,69550.0,69549.0,0.000824]
[1730147196588,0.2033139,69550.0,69549.0,0.000824]
[1730147197448,0.180781,69550.0,69549.0,0.000824]
[1730147198344,0.33479591,69550.0,69549.0,0.000824]
[1730147199270,0.32779591,69550.0,69549.0,0.000824]
[1730147199517,0.32079591,69550.0,69549.0,0.000824]
[1730147199752,0.34279591,69550.0,69549.0,0.000824]
[1730147200413,0.35989922,69550.0,69549.0,0.000824]
[1730147201332,0.33789922,69550.0,69549.0,0.000824]
[1730147201831,0.36089922,69550.0,69549.0,0.000824]
[1730147202017,0.34889922,69550.0,69549.0,0.000824]
[1730147202280,0.35089922,69550.0,69549.0,0.000824]
[1730147202499,0.47730308,69550.0,69549.0,0.000824]
[1730147202729,0.166795,69543.0,69542.0,0.001626]
[1730147202949,0.32080991,69543.0,69542.0,0.001626]
[1730147203200,0.33792416,69543.0,69542.0,0.00386548]
[1730147203288,0.33792416,69543.0,69542.0,0.001626]
[1730147203952,0.34334529,69543.0,69542.0,0.001626]
[1730147204600,0.34934529,69543.0,69542.0,0.001626]
[1730147204785,0.46974915,69543.0,69542.0,0.001626]
[1730147204994,0.37745925,69543.0,69542.0,0.001626]
[1730147205135,0.37145925,69543.0,69542.0,0.001626]
[1730147205336,0.38245925,69543.0,69542.0,0.001626]
[1730147207346,0.35992387,69543.0,69542.0,0.001626]
[1730147207566,0.21612887,69543.0,69542.0,0.001626]
[1730147207971,0.35992387,69543.0,69542.0,0.001626]
[1730147208188,0.35992387,69543.0,69542.0,0.145423]
[1730147208189,0.0497936,69543.0,69542.0,0.145423]
[1730147208420,0.03267964,69543.0,69542.0,0.00424043]
[1730147211925,0.05521413,69543.0,69542.0,0.00424043]
[1730147213868,0.19900913,69543.0,69542.0,0.00424043]
[1730147214082,0.22200913,69543.0,69542.0,0.00424043]
[1730147214322,0.22200913,69543.0,69542.0,0.001626]
[1730147214548,0.06753449,69543.0,69542.0,0.001626]
[1730147214767,0.22203088,69543.0,69542.0,0.001626]
[1730147217131,0.07823588,69543.0,69542.0,0.001626]
[1730147217549,0.05570139,69543.0,69542.0,0.001626]
[1730147217763,0.19949639,69543.0,69542.0,0.00424634]
[1730147217975,0.05570139,69543.0,69542.0,0.001626]
[1730147218195,0.05570139,69543.0,69542.0,0.00424634]
[1730147218480,0.19949639,69543.0,69542.0,0.00424634]
[1730147218713,0.05570139,69543.0,69542.0,0.00424634]
[1730147218930,0.19949639,69543.0,69542.0,0.001626]
[1730147219157,0.19949639,69543.0,69542.0,0.00398431]
[1730147219389,0.05570139,69543.0,69542.0,0.001626]
[1730147220256,0.03270139,69543.0,69542.0,0.001626]
[1730147220906,0.03270139,69543.0,69542.0,0.00457388]
[1730147221326,0.022,69543.0,69542.0,0.00457388]
[1730147221547,0.0327092,69543.0,69542.0,0.00457388]
[1730147221754,0.03270934,69543.0,69542.0,0.00457388]
[1730147221965,0.05524387,69543.0,69542.0,0.00457388]
[1730147223274,0.19903887,69543.0,69542.0,0.00457388]
[1730147223550,0.05524387,69543.0,69542.0,0.00457388]
[1730147223761,0.19903887,69543.0,69542.0,0.001626]
[1730147223974,0.22203887,69543.0,69542.0,0.00424634]
[1730147224183,0.22203887,69543.0,69542.0,0.001626]
[1730147224597,0.3546648,69543.0,69542.0,0.001626]
[1730147224818,0.63152704,69543.0,69542.0,0.001626]
[1730147225045,0.64224146,69543.0,69542.0,0.001626]
[1730147225487,0.64724146,69543.0,69542.0,0.001626]
[1730147225938,0.80122561,69543.0,69542.0,0.001626]
[1730147227485,0.77869108,69543.0,69542.0,0.001626]
[1730147229720,0.87869108,69543.0,69542.0,0.001626]
[1730147230189,0.005,69541.0,69540.0,0.00069217]
[1730147230399,0.56846266,69541.0,69540.0,0.00069217]
[1730147230622,0.82625081,69541.0,69540.0,0.00069217]
[1730147230846,0.78167052,69541.0,69540.0,0.00069217]
[1730147231515,0.83523563,69541.0,69540.0,0.00069217]
[1730147231747,0.79067052,69541.0,69540.0,0.00069217]
[1730147231959,0.78535137,69541.0,69540.0,0.00069217]
[1730147232193,0.81315827,69541.0,69540.0,0.00069217]
[1730147232624,0.82715827,69541.0,69540.0,0.00069217]
[1730147233503,0.97045041,69541.0,69540.0,0.00069217]
[1730147233971,0.96145041,69541.0,69540.0,0.00069217]
[1730147234146,0.88996236,69541.0,69540.0,0.00069217]
[1730147234400,0.73217153,69541.0,69540.0,0.00069217]
[1730147234644,0.88983176,69541.0,69540.0,0.00069217]